fUSD/lending_fUSD_20241221
["ID","MTS","AMOUNT","RATE_DAILY","PERIOD"]
[346205084,1734775846128,-500.0,0.00019178,2]
[346205085,1734775846137,-515.71,0.00019178,2]
[346205086,1734775846146,-500.0,0.00019178,2]
[346205087,1734775846155,-500.0,0.00019178,2]
[346205088,1734775846164,-707.57,0.00019178,2]
[346205089,1734775846173,-500.0,0.00019178,2]
[346205090,1734775846182,-500.0,0.00019178,2]
[346205091,1734775846192,-500.0,0.00019178,2]
[346205092,1734775846203,-549.28,0.00019178,2]
[346205093,1734775846212,-500.0,0.00019178,2]
[346205094,1734775846222,-500.0,0.00019178,2]
[346205095,1734775846231,-500.0,0.00019178,2]
[346205096,1734775846242,-500.0,0.00019178,2]
[346205097,1734775846251,-500.0,0.00019178,2]
[346205098,1734775846260,-500.0,0.00019178,2]
[346205099,1734775846270,-514.37,0.00019178,2]
[346205100,1734775846279,-500.0,0.00019178,2]
[346205101,1734775846289,-612.84,0.00019178,2]
[346205102,1734775846298,-500.0,0.00019178,2]
[346205103,1734775846307,-500.0,0.00019178,2]
[346205104,1734775846316,-639.17,0.00019178,2]
[346205105,1734775846326,-500.0,0.00019178,2]
[346205106,1734775846335,-500.0,0.00019178,2]
[346205107,1734775846345,-423.64712774,0.00019178,2]
[346205108,1734775846355,-500.0,0.00019178,2]
[346205109,1734775846364,-500.0,0.00019178,2]
[346205110,1734775846374,-500.0,0.00019178,2]
[346205111,1734775846383,-500.0,0.00019178,2]
[346205112,1734775846393,-500.0,0.00019178,2]
[346205113,1734775846402,-500.0,0.00019178,2]
[346205114,1734775846411,-721.82,0.00019178,2]
[346205115,1734775846421,-500.0,0.00019178,2]
[346205116,1734775846430,-500.0,0.00019178,2]
[346205117,1734775846440,-500.0,0.00019178,2]
[346205118,1734775846450,-500.0,0.00019178,2]
[346205119,1734775846459,-500.0,0.00019178,2]
[346205120,1734775846469,-500.0,0.00019178,2]
[346205121,1734775846478,-1097.82,0.00019178,2]
[346205122,1734775846487,-500.0,0.00019178,2]
[346205123,1734775846498,-500.0,0.00019178,2]
[346205124,1734775846507,-500.0,0.00019178,2]
[346205125,1734775846517,-500.0,0.00019178,2]
[346205126,1734775846526,-1102.35,0.00019178,2]
[346205127,1734775846536,-500.0,0.00019178,2]
[346205128,1734775846545,-500.0,0.00019178,2]
[346205129,1734775846555,-500.0,0.00019178,2]
[346205130,1734775846564,-500.0,0.00019178,2]
[346205131,1734775846574,-702.98,0.00019178,2]
[346205132,1734775846583,-500.0,0.00019178,2]
[346205133,1734775846592,-500.0,0.00019178,2]
[346205134,1734775846602,-517.71,0.00019178,2]
[346205135,1734775846611,-500.0,0.00019178,2]
[346205136,1734775846621,-500.0,0.00019178,2]
[346205137,1734775846631,-500.0,0.00019178,2]
[346205138,1734775846640,-911.98,0.00019178,2]
[346205139,1734775846650,-500.0,0.00019178,2]
[346205140,1734775846659,-500.0,0.00019178,2]
[346205141,1734775846668,-500.0,0.00019178,2]
[346205142,1734775846678,-500.0,0.00019178,2]
[346205143,1734775846687,-500.0,0.00019178,2]
[346205144,1734775846697,-500.0,0.00019178,2]
[346205145,1734775846706,-904.16,0.00019178,2]
[346205146,1734775846716,-500.0,0.00019178,2]
[346205147,1734775846725,-516.66,0.00019178,2]
[346205148,1734775846734,-500.0,0.00019178,2]
[346205149,1734775846745,-500.0,0.00019178,2]
[346205150,1734775846755,-500.0,0.00019178,2]
[346205151,1734775846764,-500.0,0.00019178,2]
[346205152,1734775846774,-500.0,0.00019178,2]
[346205153,1734775846783,-881.76,0.00019178,2]
[346205154,1734775846792,-500.0,0.00019178,2]
[346205155,1734775846802,-500.0,0.00019178,2]
[346205156,1734775846811,-500.0,0.00019178,2]
[346205157,1734775846820,-241.92771711,0.00019178,2]
[346205158,1734775846829,-500.0,0.00019178,2]
[346205159,1734775846839,-500.0,0.00019178,2]
[346205160,1734775846848,-1196.0,0.00019178,2]
[346205161,1734775846858,-500.0,0.00019178,2]
[346205162,1734775846867,-604.96,0.00019178,2]
[346205163,1734775846876,-500.0,0.00019178,2]
[346205164,1734775846886,-500.0,0.00019178,2]
[346205165,1734775846897,-500.0,0.00019178,2]
[346205166,1734775846906,-630.9,0.00019178,2]
[346205167,1734775846915,-500.0,0.00019178,2]
[346205168,1734775846925,-500.0,0.00019178,2]
[346205169,1734775846934,-500.0,0.00019178,2]
[346205170,1734775846943,-500.0,0.00019178,2]
[346205171,1734775846953,-500.0,0.00019178,2]
[346205172,1734775846962,-500.0,0.00019178,2]
[346205173,1734775846972,-500.0,0.00019178,2]
[346205174,1734775846982,-500.0,0.00019178,2]
[346205175,1734775846992,-363.9463639,0.00019178,2]
[346205176,1734775847001,-500.0,0.00019178,2]
[346205177,1734775847010,-500.0,0.00019178,2]
[346205178,1734775847020,-671.72,0.00019178,2]
[346205179,1734775847035,-500.0,0.00019178,2]
[346205180,1734775847045,-500.0,0.00019178,2]
[346205181,1734775847056,-500.0,0.00019178,2]
[346205182,1734775847066,-500.0,0.00019178,2]
[346205183,1734775847077,-500.0,0.00019178,2]
[346205184,1734775847087,-836.17,0.00019178,2]
[346205185,1734775847098,-500.0,0.00019178,2]
[346205186,1734775847108,-500.0,0.00019178,2]
[346205187,1734775847119,-500.0,0.00019178,2]
[346205188,1734775847130,-500.0,0.00019178,2]
[346205189,1734775847141,-500.0,0.00019178,2]
[346205190,1734775847151,-500.0,0.00019178,2]
[346205191,1734775847162,-954.09,0.00019178,2]
[346205192,1734775847173,-500.0,0.00019178,2]
[346205193,1734775847182,-500.0,0.00019178,2]
[346205194,1734775847192,-500.0,0.00019178,2]
[346205195,1734775847279,-500.0,0.00019178,2]
[346205196,1734775847291,-500.0,0.00019178,2]
[346205197,1734775847302,-500.0,0.00019178,2]
[346205198,1734775847311,-500.0,0.00019178,2]
[346205199,1734775847321,-500.0,0.00019178,2]
[346205200,1734775847330,-500.0,0.00019178,2]
[346205201,1734775847340,-500.0,0.00019178,2]
[346205202,1734775847349,-509.68,0.00019178,2]
[346205203,1734775847358,-500.0,0.00019178,2]
[346205204,1734775847368,-500.0,0.00019178,2]
[346205205,1734775847377,-500.5075754,0.00019178,2]
[346205206,1734775847386,-500.0,0.00019178,2]
[346205207,1734775847396,-500.0,0.00019178,2]
[346205208,1734775847406,-796.49,0.00019178,2]
[346205209,1734775847416,-200.0,0.00019178,2]
[346205210,1734775847426,-500.0,0.00019178,2]
[346205211,1734775847435,-500.0,0.00019178,2]
[346205212,1734775847444,-613.54,0.00019178,2]
[346205213,1734775847453,-500.0,0.00019178,2]
[346205214,1734775847463,-505.22706777,0.00019178,2]
[346205215,1734775847472,-500.0,0.00019178,2]
[346205216,1734775847482,-1107.03,0.00019178,2]
[346205217,1734775847491,-598.7349373,0.00019178,2]
[346205218,1734775847500,-501.7378449,0.00019178,2]
[346205219,1734775847510,-632.72,0.00019178,2]
[346205220,1734775847519,-500.0,0.00019178,2]
[346205221,1734775847528,-500.0,0.00019178,2]
[346205222,1734775847538,-500.0,0.00019178,2]
[346205223,1734775847548,-500.0,0.00019178,2]
[346205224,1734775847557,-560.9,0.00019178,2]
[346205225,1734775847566,-500.0,0.00019178,2]
[346205226,1734775847575,-500.0,0.00019178,2]
[346205227,1734775847584,-1187.28,0.00019178,2]
[346205228,1734775847593,-500.0,0.00019178,2]
[346205229,1734775847603,-500.0,0.00019178,2]
[346205230,1734775847611,-500.0,0.00019178,2]
[346205231,1734775847621,-500.0,0.00019178,2]
[346205232,1734775847630,-500.0,0.00019178,2]
[346205233,1734775847638,-886.49,0.00019178,2]
[346205234,1734775847647,-500.0,0.00019178,2]
[346205235,1734775847656,-500.0,0.00019178,2]
[346205236,1734775847665,-935.47,0.00019178,2]
[346205237,1734775847675,-500.0,0.00019178,2]
[346205238,1734775847684,-500.59333027,0.00019178,2]
[346205239,1734775847693,-500.0,0.00019178,2]
[346205240,1734775847702,-583.48,0.00019178,2]
[346205241,1734775847712,-234.78109536,0.00019178,2]
[346205242,1734775847721,-500.0,0.00019178,2]
[346205243,1734775847730,-514.47961475,0.00019178,2]
[346205244,1734775847739,-500.0,0.00019178,2]
[346205245,1734775847748,-500.0,0.00019178,2]
[346205246,1734775847758,-1195.31,0.00019178,2]
[346205247,1734775847767,-168.80049836,0.00019178,2]
[346205248,1734775847776,-500.0,0.00019178,2]
[346205249,1734775847786,-500.0,0.00019178,2]
[346205250,1734775847795,-711.4,0.00019178,2]
[346205251,1734775847805,-500.0,0.00019178,2]
[346205252,1734775847816,-500.0,0.00019178,2]
[346205253,1734775847826,-500.0,0.00019178,2]
[346205254,1734775847835,-868.6,0.00019178,2]
[346205255,1734775847845,-500.0,0.00019178,2]
[346205256,1734775847856,-556.56,0.00019178,2]
[346205257,1734775847865,-500.0,0.00019178,2]
[346205258,1734775847874,-500.0,0.00019178,2]
[346205259,1734775847883,-500.0,0.00019178,2]
[346205260,1734775847893,-500.0,0.00019178,2]
[346205261,1734775847902,-1259.03,0.00019178,2]
[346205262,1734775847912,-500.0,0.00019178,2]
[346205263,1734775847922,-566.68,0.00019178,2]
[346205264,1734775847931,-514.79177244,0.00019178,2]
[346205265,1734775847940,-500.0,0.00019178,2]
[346205266,1734775847952,-526.17,0.00019178,2]
[346205267,1734775847962,-500.0,0.00019178,2]
[346205268,1734775847971,-500.0,0.00019178,2]
[346205269,1734775847981,-688.11,0.00019178,2]
[346205270,1734775847990,-500.0,0.00019178,2]
[346205271,1734775848000,-500.0,0.00019178,2]
[346205272,1734775848009,-500.0,0.00019178,2]
[346205273,1734775848019,-500.0,0.00019178,2]
[346205274,1734775848032,-508.1317437,0.00019178,2]
[346205275,1734775848041,-982.15,0.00019178,2]
[346205276,1734775848051,-982.5,0.00019178,2]
[346205277,1734775848061,-500.0,0.00019178,2]
[346205278,1734775848071,-500.0,0.00019178,2]
[346205279,1734775848080,-500.0,0.00019178,2]
[346205280,1734775848090,-500.35277936,0.00019178,2]
[346205281,1734775848101,-500.0,0.00019178,2]
[346205282,1734775848111,-522.34365342,0.00019178,2]
[346205283,1734775848120,-700.81,0.00019178,2]
[346205284,1734775848129,-500.0,0.00019178,2]
[346205285,1734775848138,-500.0,0.00019178,2]
[346205286,1734775848147,-500.0,0.00019178,2]
[346205287,1734775848156,-500.0,0.00019178,2]
[346205288,1734775848165,-500.0,0.00019178,2]
[346205289,1734775848174,-500.0,0.00019178,2]
[346205290,1734775848183,-500.0,0.00019178,2]
[346205291,1734775848193,-908.4,0.00019178,2]
[346205292,1734775848202,-500.0,0.00019178,2]
[346205293,1734775848213,-500.0,0.00019178,2]
[346205294,1734775848223,-500.87993932,0.00019178,2]
[346205295,1734775848233,-500.0,0.00019178,2]
[346205296,1734775848245,-970.68,0.00019178,2]
[346205297,1734775848254,-1203.95,0.00019178,2]
[346205298,1734775848263,-500.0,0.00019178,2]
[346205299,1734775848273,-500.0,0.00019178,2]
[346205300,1734775848282,-500.0,0.00019178,2]
[346205301,1734775848292,-500.0,0.00019178,2]
[346205302,1734775848301,-500.0,0.00019178,2]
[346205303,1734775848310,-500.0,0.00019178,2]
[346205304,1734775848319,-500.0,0.00019178,2]
[346205305,1734775848328,-500.62555668,0.00019178,2]
[346205306,1734775848337,-604.93,0.00019178,2]
[346205307,1734775848347,-1020.15,0.00019178,2]
[346205308,1734775848356,-500.0,0.00019178,2]
[346205309,1734775848365,-500.0,0.00019178,2]
[346205310,1734775848375,-500.0,0.00019178,2]
[346205311,1734775848385,-500.0,0.00019178,2]
[346205312,1734775848394,-500.0,0.00019178,2]
[346205313,1734775848403,-500.0,0.00019178,2]
[346205314,1734775848413,-977.35,0.00019178,2]
[346205315,1734775848423,-500.0,0.00019178,2]
[346205316,1734775848433,-500.0,0.00019178,2]
[346205317,1734775848442,-500.0,0.00019178,2]
[346205318,1734775848452,-500.0,0.00019178,2]
[346205319,1734775848461,-500.0,0.00019178,2]
[346205320,1734775848470,-500.0,0.00019178,2]
[346205321,1734775848480,-500.0,0.00019178,2]
[346205322,1734775848489,-588.29,0.00019178,2]
[346205323,1734775848502,-2100.81,0.00019178,2]
[346205324,1734775848514,-500.0,0.00019178,2]
[346205325,1734775848524,-500.0,0.00019178,2]
[346205326,1734775848534,-568.97764101,0.00019178,2]
[346205327,1734775848545,-500.0,0.00019178,2]
[346205328,1734775848554,-500.0,0.00019178,2]
[346205329,1734775848563,-1137.46,0.00019178,2]
[346205330,1734775848573,-500.0,0.00019178,2]
[346205331,1734775848583,-500.0,0.00019178,2]
[346205332,1734775848592,-500.0,0.00019178,2]
[346205333,1734775848602,-502.23866934,0.00019178,2]
[346205334,1734775848611,-500.0,0.00019178,2]
[346205335,1734775848622,-500.86278918,0.00019178,2]
[346205336,1734775848631,-561.80150499,0.00019178,2]
[346205337,1734775848641,-501.38255428,0.00019178,2]
[346205338,1734775848650,-954.46,0.00019178,2]
[346205339,1734775848660,-500.0,0.00019178,2]
[346205340,1734775848670,-500.0,0.00019178,2]
[346205341,1734775848679,-401.33761652,0.00019178,2]
[346205342,1734775848689,-500.0,0.00019178,2]
[346205343,1734775848698,-500.0,0.00019178,2]
[346205344,1734775848708,-500.0,0.00019178,2]
[346205345,1734775848718,-500.0,0.00019178,2]
[346205346,1734775848727,-588.07,0.00019178,2]
[346205347,1734775848737,-500.0,0.00019178,2]
[346205348,1734775848749,-500.0,0.00019178,2]
[346205349,1734775848759,-865.9,0.00019178,2]
[346205350,1734775848768,-500.0,0.00019178,2]
[346205351,1734775848778,-400.37728645,0.00019178,2]
[346205352,1734775848788,-500.0,0.00019178,2]
[346205353,1734775848798,-500.0,0.00019178,2]
[346205354,1734775848809,-500.0,0.00019178,2]
[346205355,1734775848818,-501.05272677,0.00019178,2]
[346205356,1734775848828,-500.0,0.00019178,2]
[346205357,1734775848838,-500.0,0.00019178,2]
[346205358,1734775848847,-502.36001187,0.00019178,2]
[346205359,1734775848856,-1839.2,0.00019178,2]
[346205360,1734775848866,-500.0,0.00019178,2]
[346205361,1734775848875,-500.0,0.00019178,2]
[346205362,1734775848885,-500.0,0.00019178,2]
[346205363,1734775848894,-500.0,0.00019178,2]
[346205364,1734775848904,-841.64,0.00019178,2]
[346205365,1734775848913,-500.0,0.00019178,2]
[346205366,1734775848922,-500.0,0.00019178,2]
[346205367,1734775848932,-500.0,0.00019178,2]
[346205368,1734775848941,-500.0,0.00019178,2]
[346205369,1734775848951,-753.67,0.00019178,2]
[346205370,1734775848960,-500.0,0.00019178,2]
[346205371,1734775848970,-500.0,0.00019178,2]
[346205372,1734775848980,-500.0,0.00019178,2]
[346205373,1734775848990,-1434.78,0.00019178,2]
[346205374,1734775849000,-500.0,0.00019178,2]
[346205375,1734775849010,-500.0,0.00019178,2]
[346205376,1734775849019,-500.0,0.00019178,2]
[346205377,1734775849032,-500.0,0.00019178,2]
[346205378,1734775849042,-500.0,0.00019178,2]
[346205379,1734775849052,-501.54653306,0.00019178,2]
[346205380,1734775849061,-500.0,0.00019178,2]
[346205381,1734775849071,-500.0,0.00019178,2]
[346205382,1734775849080,-916.41,0.00019178,2]
[346205383,1734775849090,-501.53691382,0.00019178,2]
[346205384,1734775849100,-500.0,0.00019178,2]
[346205385,1734775849110,-535.86320061,0.00019178,2]
[346205386,1734775849121,-500.0,0.00019178,2]
[346205387,1734775849130,-171.26134603,0.00019178,2]
[346205388,1734775849140,-500.0,0.00019178,2]
[346205389,1734775849150,-1229.82,0.00019178,2]
[346205390,1734775849160,-500.0,0.00019178,2]
[346205391,1734775849169,-538.68,0.00019178,2]
[346205392,1734775849179,-500.0,0.00019178,2]
[346205393,1734775849189,-500.0,0.00019178,2]
[346205394,1734775849198,-500.0,0.00019178,2]
[346205395,1734775849208,-500.0,0.00019178,2]
[346205396,1734775849219,-1289.82,0.00019178,2]
[346205397,1734775849229,-304.81777258,0.00019178,2]
[346205398,1734775849239,-500.0,0.00019178,2]
[346205399,1734775849250,-500.0,0.00019178,2]
[346205400,1734775849260,-500.0,0.00019178,2]
[346205401,1734775849270,-500.0,0.00019178,2]
[346205402,1734775849281,-3068.56,0.00019178,2]
[346205403,1734775849291,-500.0,0.00019178,2]
[346205404,1734775849302,-816.83,0.00019178,2]
[346205405,1734775849312,-500.0,0.00019178,2]
[346205406,1734775849322,-1681.21,0.00019178,2]
[346205407,1734775849332,-500.0,0.00019178,2]
[346205408,1734775849342,-500.0,0.00019178,2]
[346205409,1734775849352,-821.19,0.00019178,2]
[346205410,1734775849363,-500.0,0.00019178,2]
[346205411,1734775849373,-515.01,0.00019178,2]
[346205412,1734775849383,-500.0,0.00019178,2]
[346205413,1734775849394,-564.73,0.00019178,2]
[346205414,1734775849404,-500.0,0.00019178,2]
[346205415,1734775849415,-503.14,0.00019178,2]
[346205416,1734775849425,-500.0,0.00019178,2]
[346205417,1734775849435,-500.0,0.00019178,2]
[346205418,1734775849446,-500.0,0.00019178,2]
[346205419,1734775849456,-500.0,0.00019178,2]
[346205420,1734775849467,-500.0,0.00019178,2]
[346205421,1734775849477,-500.0,0.00019178,2]
[346205422,1734775849487,-500.0,0.00019178,2]
[346205423,1734775849500,-500.0,0.00019178,2]
[346205424,1734775849510,-528.97,0.00019178,2]
[346205425,1734775849520,-500.0,0.00019178,2]
[346205426,1734775849530,-500.0,0.00019178,2]
[346205427,1734775849540,-1802.69,0.00019178,2]
[346205428,1734775849551,-500.0,0.00019178,2]
[346205429,1734775849561,-500.0,0.00019178,2]
[346205430,1734775849571,-500.0,0.00019178,2]
[346205431,1734775849581,-1428.18,0.00019178,2]
[346205432,1734775849591,-500.0,0.00019178,2]
[346205433,1734775849602,-1530.46,0.00019178,2]
[346205434,1734775849612,-517.49,0.00019178,2]
[346205435,1734775849622,-500.0,0.00019178,2]
[346205436,1734775849632,-2857.77,0.00019178,2]
[346205437,1734775849643,-1035.1,0.00019178,2]
[346205438,1734775849653,-500.0,0.00019178,2]
[346205439,1734775849664,-504.23220242,0.00019178,2]
[346205440,1734775849674,-5744.66,0.00019178,2]
[346205441,1734775849684,-500.0,0.00019178,2]
[346205442,1734775849694,-500.0,0.00019178,2]
[346205443,1734775849704,-500.0,0.00019178,2]
[346205444,1734775849714,-500.0,0.00019178,2]
[346205445,1734775849723,-500.0,0.00019178,2]
[346205446,1734775849733,-3645.89,0.00019178,2]
[346205447,1734775849744,-500.0,0.00019178,2]
[346205448,1734775849753,-7770.52,0.00019178,2]
[346205449,1734775849763,-5825.61,0.00019178,2]
[346205450,1734775849772,-500.0,0.00019178,2]
[346205451,1734775849782,-500.0,0.00019178,2]
[346205452,1734775849792,-500.0,0.00019178,2]
[346205453,1734775849802,-500.0,0.00019178,2]
[346205454,1734775849812,-500.0,0.00019178,2]
[346205455,1734775849821,-500.0,0.00019178,2]
[346205456,1734775849831,-315.30726675,0.00019178,2]
[346205457,1734775849840,-676.76,0.00019178,2]
[346205458,1734775849850,-655.72,0.00019178,2]
[346205459,1734775849860,-500.0,0.00019178,2]
[346205460,1734775849870,-272.23395705,0.00019178,2]
[346205461,1734775849880,-500.0,0.00019178,2]
[346205462,1734775849890,-6344.44,0.00019178,2]
[346205463,1734775849899,-509.64875958,0.00019178,2]
[346205464,1734775849909,-515.28,0.00019178,2]
[346205465,1734775849920,-500.0,0.00019178,2]
[346205466,1734775849929,-500.0,0.00019178,2]
[346205467,1734775849939,-500.0,0.00019178,2]
[346205468,1734775849949,-446.73497595,0.00019178,2]
[346205469,1734775849959,-315.22786933,0.00019178,2]
[346205470,1734775849969,-2388.26,0.00019178,2]
[346205471,1734775849979,-500.0,0.00019178,2]
[346205472,1734775849989,-1144.61,0.00019178,2]
[346205473,1734775850000,-500.0,0.00019178,2]
[346205474,1734775850010,-500.0,0.00019178,2]
[346205475,1734775850020,-501.25297409,0.00019178,2]
[346205476,1734775850034,-5318.41,0.00019178,2]
[346205477,1734775850044,-501.79,0.00019178,2]
[346205478,1734775850055,-500.0,0.00019178,2]
[346205479,1734775850067,-500.0,0.00019178,2]
[346205480,1734775850079,-1263.34,0.00019178,2]
[346205481,1734775850089,-500.0,0.00019178,2]
[346205482,1734775850100,-500.0,0.00019178,2]
[346205483,1734775850110,-500.0,0.00019178,2]
[346205484,1734775850120,-876.73,0.00019178,2]
[346205485,1734775850130,-500.0,0.00019178,2]
[346205486,1734775850140,-500.0,0.00019178,2]
[346205487,1734775850150,-935.87,0.00019178,2]
[346205488,1734775850160,-2971.78,0.00019178,2]
[346205489,1734775850170,-500.0,0.00019178,2]
[346205490,1734775850182,-500.0,0.00019178,2]
[346205491,1734775850192,-6748.31,0.00019178,2]
[346205492,1734775850202,-1058.32,0.00019178,2]
[346205493,1734775850213,-500.0,0.00019178,2]
[346205494,1734775850223,-500.0,0.00019178,2]
[346205495,1734775850236,-1217.48,0.00019178,2]
[346205496,1734775850247,-3504.24,0.00019178,2]
[346205497,1734775850257,-499.30868463,0.00019178,2]
[346205498,1734775850267,-500.0,0.00019178,2]
[346205499,1734775850277,-1129.8,0.00019178,2]
[346205500,1734775850287,-500.0,0.00019178,2]
[346205501,1734775850297,-500.0,0.00019178,2]
[346205502,1734775850307,-3097.42,0.00019178,2]
[346205503,1734775850318,-500.0,0.00019178,2]
[346205504,1734775850328,-500.0,0.00019178,2]
[346205505,1734775850338,-500.0,0.00019178,2]
[346205506,1734775850349,-1490.71,0.00019178,2]
[346205507,1734775850359,-501.84482127,0.00019178,2]
[346205508,1734775850369,-500.0,0.00019178,2]
[346205509,1734775850379,-859.98,0.00019178,2]
[346205510,1734775850388,-500.0,0.00019178,2]
[346205511,1734775850399,-676.92,0.00019178,2]
[346205512,1734775850410,-1565.87,0.00019178,2]
[346205513,1734775850421,-4052.02,0.00019178,2]
[346205514,1734775850435,-500.0,0.00019178,2]
[346205515,1734775850445,-500.0,0.00019178,2]
[346205516,1734775850455,-1458.03,0.00019178,2]
[346205517,1734775850465,-500.0,0.00019178,2]
[346205518,1734775850475,-500.0,0.00019178,2]
[346205519,1734775850486,-500.0,0.00019178,2]
[346205520,1734775850497,-500.0,0.00019178,2]
[346205521,1734775850507,-500.0,0.00019178,2]
[346205522,1734775850518,-597.2756702,0.00019178,2]
[346205523,1734775850528,-500.0,0.00019178,2]
[346205524,1734775850538,-500.0,0.00019178,2]
[346205525,1734775850547,-500.0,0.00019178,2]
[346205526,1734775850557,-500.0,0.00019178,2]
[346205527,1734775850566,-220.35154026,0.00019178,2]
[346205528,1734775850577,-500.0,0.00019178,2]
[346205529,1734775850586,-500.0,0.00019178,2]
[346205530,1734775850596,-500.0,0.00019178,2]
[346205531,1734775850606,-500.0,0.00019178,2]
[346205532,1734775850616,-500.0,0.00019178,2]
[346205533,1734775850626,-500.0,0.00019178,2]
[346205534,1734775850635,-500.0,0.00019178,2]
[346205535,1734775850645,-500.0,0.00019178,2]
[346205536,1734775850654,-500.0,0.00019178,2]
[346205537,1734775850664,-500.0,0.00019178,2]
[346205538,1734775850673,-500.0,0.00019178,2]
[346205539,1734775850683,-500.0,0.00019178,2]
[346205540,1734775850693,-501.84438145,0.00019178,2]
[346205541,1734775850702,-632.15,0.00019178,2]
[346205542,1734775850712,-500.0,0.00019178,2]
[346205543,1734775850722,-500.0,0.00019178,2]
[346205544,1734775850731,-500.0,0.00019178,2]
[346205545,1734775850741,-830.33,0.00019178,2]
[346205546,1734775850751,-1009.36,0.00019178,2]
[346205547,1734775850761,-858.9,0.00019178,2]
[346205548,1734775850954,-1002.4,0.00019178,2]
[346205549,1734775850963,-500.0,0.00019178,2]
[346205550,1734775850973,-2321.55,0.00019178,2]
[346205551,1734775850982,-500.0,0.00019178,2]
[346205552,1734775850991,-500.0,0.00019178,2]
[346205553,1734775851001,-600.34,0.00019178,2]
[346205554,1734775851010,-1104.22,0.00019178,2]
[346205555,1734775851019,-500.0,0.00019178,2]
[346205556,1734775851029,-764.36,0.00019178,2]
[346205557,1734775851038,-587.59552375,0.00019178,2]
[346205558,1734775851047,-500.0,0.00019178,2]
[346205559,1734775851056,-500.0,0.00019178,2]
[346205560,1734775851066,-4224.23,0.00019178,2]
[346205561,1734775851077,-1180.1,0.00019178,2]
[346205562,1734775851086,-500.0,0.00019178,2]
[346205563,1734775851096,-633.6,0.00019178,2]
[346205564,1734775851107,-634.17,0.00019178,2]
[346205565,1734775851116,-500.0,0.00019178,2]
[346205566,1734775851125,-500.0,0.00019178,2]
[346205567,1734775851135,-500.0,0.00019178,2]
[346205568,1734775851144,-500.0,0.00019178,2]
[346205569,1734775851153,-500.0,0.00019178,2]
[346205570,1734775851162,-1585.36,0.00019178,2]
[346205571,1734775851172,-898.1,0.00019178,2]
[346205572,1734775851182,-500.0,0.00019178,2]
[346205573,1734775851192,-500.0,0.00019178,2]
[346205574,1734775851203,-4622.95,0.00019178,2]
[346205575,1734775851213,-1021.92,0.00019178,2]
[346205576,1734775851222,-500.0,0.00019178,2]
[346205577,1734775851232,-691.59,0.00019178,2]
[346205578,1734775851244,-500.0,0.00019178,2]
[346205579,1734775851255,-500.0,0.00019178,2]
[346205580,1734775851264,-500.0,0.00019178,2]
[346205581,1734775851274,-500.0,0.00019178,2]
[346205582,1734775851284,-500.0,0.00019178,2]
[346205583,1734775851294,-579.1460058,0.00019178,2]